[Event "Titled Tuesday Blitz May 23 Early 2023"]
[White "Rose, Felix"]
[Black "Goltseva, Ekaterina"]
[WhiteFideId "5105722"]
[BlackFideId "24173770"]
[WhiteElo "2039"]
[BlackElo "2114"]
[Result "0-1"]
[Round "10"]
[TimeControl "180+2"]
[Date "2023.05.23"]
[WhiteClock "0:00:00"]
[BlackClock "0:01:48"]

1. e4 {[%clk 0:02:59]}  Nf6 {[%clk 0:02:51]} 2. e5 {[%clk 0:03:00]}  Nd5 {[%clk 0:02:49]} 3. d4 {[%clk 0:03:00]}  d6 {[%clk 0:02:49]} 4. c4 {[%clk 0:03:01]}  Nb6 {[%clk 0:02:47]} 5. exd6 {[%clk 0:03:02]}  cxd6 {[%clk 0:02:48]} 6. Nc3 {[%clk 0:03:03]}  g6 {[%clk 0:02:48]} 7. Be3 {[%clk 0:03:03]}  Bg7 {[%clk 0:02:48]} 8. Rc1 {[%clk 0:03:04]}  Nc6 {[%clk 0:02:49]} 9. b3 {[%clk 0:03:05]}  Bf5 {[%clk 0:02:47]} 10. d5 {[%clk 0:02:58]}  Nb4 {[%clk 0:02:43]} 11. Nf3 {[%clk 0:02:43]}  O-O {[%clk 0:02:32]} 12. Nd4 {[%clk 0:02:28]}  Bd7 {[%clk 0:02:28]} 13. Be2 {[%clk 0:02:25]}  e5 {[%clk 0:02:24]} 14. dxe6 {[%clk 0:02:18]}  fxe6 {[%clk 0:02:23]} 15. O-O {[%clk 0:02:17]}  Qe7 {[%clk 0:02:17]} 16. a3 {[%clk 0:02:05]}  Nc6 {[%clk 0:02:15]} 17. Ndb5 {[%clk 0:02:02]}  Nc8 {[%clk 0:02:10]} 18. Qd2 {[%clk 0:01:28]}  a6 {[%clk 0:01:54]} 19. Bg5 {[%clk 0:00:00]}  Bf6 {[%clk 0:01:48]} 0-1


[Site "https://www.chess.com"]

[Event "Titled Tuesday Blitz May 23 Early 2023"]
[White "Goncalves, Davi Sulzbacher"]
[Black "mohsengabr2002"]
[WhiteFideId "2154510"]
[WhiteElo "2182"]
[BlackElo "2301"]
[Result "1-0"]
[Round "10"]
[TimeControl "180+2"]
[Date "2023.05.23"]
[WhiteClock "0:00:10"]
[BlackClock "0:00:53"]

1. Nf3 {[%clk 0:02:56]}  d5 {[%clk 0:02:59]} 2. g3 {[%clk 0:02:56]}  Nc6 {[%clk 0:02:58]} 3. d4 {[%clk 0:02:56]}  Bg4 {[%clk 0:02:57]} 4. Bg2 {[%clk 0:02:55]}  Bxf3 {[%clk 0:02:57]} 5. Bxf3 {[%clk 0:02:55]}  e6 {[%clk 0:02:58]} 6. O-O {[%clk 0:02:51]}  Nf6 {[%clk 0:02:58]} 7. c4 {[%clk 0:02:46]}  dxc4 {[%clk 0:02:57]} 8. e3 {[%clk 0:02:47]}  Nd5 {[%clk 0:02:53]} 9. Qe2 {[%clk 0:02:32]}  Nb6 {[%clk 0:02:51]} 10. Nd2 {[%clk 0:02:29]}  h5 {[%clk 0:02:44]} 11. Nxc4 {[%clk 0:02:23]}  h4 {[%clk 0:02:40]} 12. Bd2 {[%clk 0:02:17]}  Bd6 {[%clk 0:02:36]} 13. Rfc1 {[%clk 0:02:07]}  Kf8 {[%clk 0:02:31]} 14. a3 {[%clk 0:01:57]}  hxg3 {[%clk 0:02:28]} 15. hxg3 {[%clk 0:01:56]}  Qg5 {[%clk 0:02:27]} 16. Kg2 {[%clk 0:01:34]}  Nd5 {[%clk 0:02:10]} 17. Rh1 {[%clk 0:01:29]}  Ke7 {[%clk 0:02:05]} 18. Nxd6 {[%clk 0:01:04]}  cxd6 {[%clk 0:02:02]} 19. e4 {[%clk 0:01:03]}  Qf6 {[%clk 0:01:52]} 20. exd5 {[%clk 0:01:01]}  Nxd4 {[%clk 0:01:52]} 21. Bc3 {[%clk 0:00:55]}  Rxh1 {[%clk 0:01:17]} 22. Rxh1 {[%clk 0:00:50]}  Rc8 {[%clk 0:01:14]} 23. Bxd4 {[%clk 0:00:45]}  Qxd4 {[%clk 0:01:14]} 24. dxe6 {[%clk 0:00:44]}  fxe6 {[%clk 0:01:13]} 25. Re1 {[%clk 0:00:34]}  Qf6 {[%clk 0:01:10]} 26. Qb5 {[%clk 0:00:31]}  b6 {[%clk 0:01:08]} 27. Qa4 {[%clk 0:00:24]}  Rc7 {[%clk 0:01:05]} 28. b4 {[%clk 0:00:19]}  Qc3 {[%clk 0:01:04]} 29. Re2 {[%clk 0:00:11]}  Kf6 {[%clk 0:00:58]} 30. Qe8 {[%clk 0:00:11]}  Re7 {[%clk 0:00:55]} 31. Qf8+ {[%clk 0:00:09]}  Rf7 {[%clk 0:00:56]} 32. Qxd6 {[%clk 0:00:10]}  Kg6 {[%clk 0:00:54]} 33. Be4+ {[%clk 0:00:09]}  Kh6 {[%clk 0:00:52]} 34. Qxe6+ {[%clk 0:00:09]}  Rf6 {[%clk 0:00:53]} 35. Qh3+ {[%clk 0:00:09]}  Kg5 {[%clk 0:00:53]} 36. Qh4# {[%clk 0:00:10]} 1-0


[Site "https://www.chess.com"]

[Event "Titled Tuesday Blitz May 23 Early 2023"]
[White "Korkmaz, Necmettin"]
[Black "ChawitAp"]
[WhiteFideId "6303285"]
[WhiteElo "2097"]
[BlackElo "2286"]
[Result "0-1"]
[Round "10"]
[TimeControl "180+2"]
[Date "2023.05.23"]
[WhiteClock "0:00:29"]
[BlackClock "0:00:06"]

1. e4 {[%clk 0:02:56]}  c6 {[%clk 0:03:00]} 2. d4 {[%clk 0:02:55]}  g6 {[%clk 0:03:00]} 3. Nc3 {[%clk 0:02:56]}  Bg7 {[%clk 0:03:01]} 4. Nf3 {[%clk 0:02:56]}  d5 {[%clk 0:03:01]} 5. h3 {[%clk 0:02:57]}  dxe4 {[%clk 0:03:01]} 6. Nxe4 {[%clk 0:02:57]}  Nf6 {[%clk 0:03:01]} 7. Nxf6+ {[%clk 0:02:57]}  exf6 {[%clk 0:03:02]} 8. Bc4 {[%clk 0:02:57]}  O-O {[%clk 0:03:01]} 9. O-O {[%clk 0:02:58]}  Bf5 {[%clk 0:02:58]} 10. Re1 {[%clk 0:02:58]}  Nd7 {[%clk 0:02:58]} 11. c3 {[%clk 0:02:57]}  Nb6 {[%clk 0:02:57]} 12. Bb3 {[%clk 0:02:57]}  Re8 {[%clk 0:02:49]} 13. Be3 {[%clk 0:02:56]}  Be4 {[%clk 0:02:48]} 14. Nd2 {[%clk 0:02:55]}  f5 {[%clk 0:02:44]} 15. Nxe4 {[%clk 0:02:53]}  fxe4 {[%clk 0:02:42]} 16. Qd2 {[%clk 0:02:52]}  Nd5 {[%clk 0:02:41]} 17. Bh6 {[%clk 0:02:52]}  Bxh6 {[%clk 0:02:34]} 18. Qxh6 {[%clk 0:02:52]}  Qf6 {[%clk 0:02:34]} 19. g3 {[%clk 0:02:30]}  e3 {[%clk 0:02:29]} 20. f4 {[%clk 0:02:27]}  Re7 {[%clk 0:02:12]} 21. Re2 {[%clk 0:02:19]}  Rae8 {[%clk 0:02:12]} 22. Qg5 {[%clk 0:02:15]}  Qd6 {[%clk 0:01:57]} 23. Bxd5 {[%clk 0:02:12]}  cxd5 {[%clk 0:01:55]} 24. Rae1 {[%clk 0:02:12]}  Kg7 {[%clk 0:01:51]} 25. Qg4 {[%clk 0:02:08]}  h5 {[%clk 0:01:44]} 26. Qf3 {[%clk 0:02:07]}  Qe6 {[%clk 0:01:42]} 27. g4 {[%clk 0:02:04]}  Qe4 {[%clk 0:01:39]} 28. Kg2 {[%clk 0:02:02]}  hxg4 {[%clk 0:01:20]} 29. hxg4 {[%clk 0:02:02]}  Qd3 {[%clk 0:01:20]} 30. Qxd5 {[%clk 0:02:00]}  Re4 {[%clk 0:01:14]} 31. Kf3 {[%clk 0:01:59]}  R8e6 {[%clk 0:00:58]} 32. g5 {[%clk 0:01:51]}  b5 {[%clk 0:00:36]} 33. f5 {[%clk 0:01:36]}  gxf5 {[%clk 0:00:14]} 34. Qxf5 {[%clk 0:01:35]}  b4 {[%clk 0:00:05]} 35. Rh1 {[%clk 0:01:34]}  bxc3 {[%clk 0:00:05]} 36. Rh8 {[%clk 0:01:31]}  Rf4+ {[%clk 0:00:02]} 37. Qxf4 {[%clk 0:01:13]}  Kxh8 {[%clk 0:00:02]} 38. bxc3 {[%clk 0:01:10]}  Kg7 {[%clk 0:00:01]} 39. Rxe3 {[%clk 0:01:10]}  Qd1+ {[%clk 0:00:01]} 40. Kg3 {[%clk 0:01:05]}  Qg1+ {[%clk 0:00:01]} 41. Kf3 {[%clk 0:01:05]}  Qf1+ {[%clk 0:00:01]} 42. Kg4 {[%clk 0:01:05]}  Qg1+ {[%clk 0:00:02]} 43. Rg3 {[%clk 0:01:01]}  Qd1+ {[%clk 0:00:02]} 44. Kh4 {[%clk 0:00:55]}  Qc2 {[%clk 0:00:02]} 45. d5 {[%clk 0:00:48]}  Re4 {[%clk 0:00:02]} 46. Rf3 {[%clk 0:00:41]}  Qh2+ {[%clk 0:00:02]} 47. Kg4 {[%clk 0:00:40]}  Rxf4+ {[%clk 0:00:02]} 48. Rxf4 {[%clk 0:00:41]}  Qg2+ {[%clk 0:00:03]} 49. Kf5 {[%clk 0:00:40]}  Qxd5+ {[%clk 0:00:03]} 50. Kg4 {[%clk 0:00:40]}  Qxa2 {[%clk 0:00:04]} 51. c4 {[%clk 0:00:39]}  Qe2+ {[%clk 0:00:04]} 52. Kf5 {[%clk 0:00:40]}  a5 {[%clk 0:00:05]} 53. Re4 {[%clk 0:00:38]}  Qc2 {[%clk 0:00:05]} 54. Ke5 {[%clk 0:00:38]}  a4 {[%clk 0:00:06]} 55. Kd5 {[%clk 0:00:38]}  a3 {[%clk 0:00:06]} 56. c5 {[%clk 0:00:38]}  a2 {[%clk 0:00:07]} 57. Re1 {[%clk 0:00:39]}  Qb3+ {[%clk 0:00:06]} 58. Kc6 {[%clk 0:00:37]}  Qa4+ {[%clk 0:00:06]} 59. Kc7 {[%clk 0:00:29]}  Qa5+ {[%clk 0:00:06]} 0-1


[Site "https://www.chess.com"]

[Event "Titled Tuesday Blitz May 23 Early 2023"]
[White "lluiss"]
[Black "Omariev, Maksim"]
[BlackFideId "4193423"]
[WhiteElo "2269"]
[BlackElo "2474"]
[Result "0-1"]
[Round "10"]
[TimeControl "180+2"]
[Date "2023.05.23"]
[WhiteClock "0:00:42"]
[BlackClock "0:00:36"]

1. Nf3 {[%clk 0:03:00]}  d5 {[%clk 0:02:53]} 2. d4 {[%clk 0:03:00]}  c6 {[%clk 0:02:53]} 3. c4 {[%clk 0:02:59]}  Nf6 {[%clk 0:02:54]} 4. cxd5 {[%clk 0:02:59]}  cxd5 {[%clk 0:02:54]} 5. Nc3 {[%clk 0:02:59]}  Nc6 {[%clk 0:02:55]} 6. Bf4 {[%clk 0:02:59]}  a6 {[%clk 0:02:55]} 7. e3 {[%clk 0:02:59]}  Bf5 {[%clk 0:02:55]} 8. Bd3 {[%clk 0:02:58]}  Bxd3 {[%clk 0:02:55]} 9. Qxd3 {[%clk 0:02:59]}  e6 {[%clk 0:02:56]} 10. O-O {[%clk 0:02:59]}  Be7 {[%clk 0:02:56]} 11. Rfc1 {[%clk 0:02:56]}  Nh5 {[%clk 0:02:55]} 12. Bg3 {[%clk 0:02:54]}  Nxg3 {[%clk 0:02:55]} 13. hxg3 {[%clk 0:02:55]}  O-O {[%clk 0:02:56]} 14. a3 {[%clk 0:02:51]}  Rc8 {[%clk 0:02:55]} 15. b4 {[%clk 0:02:51]}  b5 {[%clk 0:02:55]} 16. Nd2 {[%clk 0:02:49]}  Qb6 {[%clk 0:02:19]} 17. Nb3 {[%clk 0:02:46]}  Rc7 {[%clk 0:02:19]} 18. Rc2 {[%clk 0:02:43]}  Rfc8 {[%clk 0:02:03]} 19. Rac1 {[%clk 0:02:42]}  Bxb4 {[%clk 0:01:52]} 20. Nxd5 {[%clk 0:02:31]}  exd5 {[%clk 0:01:49]} 21. axb4 {[%clk 0:02:16]}  Nxb4 {[%clk 0:01:50]} 22. Rxc7 {[%clk 0:02:15]}  Rxc7 {[%clk 0:01:51]} 23. Rxc7 {[%clk 0:02:13]}  Qxc7 {[%clk 0:01:49]} 24. Qf5 {[%clk 0:02:09]}  g6 {[%clk 0:01:43]} 25. Qf3 {[%clk 0:01:50]}  a5 {[%clk 0:01:33]} 26. Nc5 {[%clk 0:01:50]}  a4 {[%clk 0:01:29]} 27. e4 {[%clk 0:01:45]}  dxe4 {[%clk 0:01:20]} 28. Qxe4 {[%clk 0:01:44]}  Qd8 {[%clk 0:01:15]} 29. d5 {[%clk 0:01:21]}  Nxd5 {[%clk 0:01:14]} 30. Qe5 {[%clk 0:01:21]}  a3 {[%clk 0:00:42]} 31. Nb7 {[%clk 0:00:55]}  Qd7 {[%clk 0:00:41]} 32. Nd6 {[%clk 0:00:42]}  Qe6 {[%clk 0:00:36]} 0-1


[Site "https://www.chess.com"]

[Event "Titled Tuesday Blitz May 23 Early 2023"]
[White "Martin, Lewis"]
[Black "Shubenkova, Veronika"]
[WhiteFideId "410551"]
[BlackFideId "44124040"]
[WhiteElo "2145"]
[BlackElo "2060"]
[Result "0-1"]
[Round "10"]
[TimeControl "180+2"]
[Date "2023.05.23"]
[WhiteClock "0:01:17"]
[BlackClock "0:02:22"]

1. e4 {[%clk 0:03:00]}  e6 {[%clk 0:02:59]} 2. b3 {[%clk 0:02:59]}  d5 {[%clk 0:02:59]} 3. exd5 {[%clk 0:02:57]}  exd5 {[%clk 0:02:59]} 4. Bb2 {[%clk 0:02:58]}  Nf6 {[%clk 0:03:00]} 5. Nf3 {[%clk 0:02:56]}  Be7 {[%clk 0:03:00]} 6. Be2 {[%clk 0:02:51]}  O-O {[%clk 0:03:00]} 7. O-O {[%clk 0:02:52]}  c5 {[%clk 0:03:00]} 8. d4 {[%clk 0:02:52]}  Nc6 {[%clk 0:02:59]} 9. dxc5 {[%clk 0:02:51]}  Bxc5 {[%clk 0:02:59]} 10. Nbd2 {[%clk 0:02:45]}  Re8 {[%clk 0:02:54]} 11. Bd3 {[%clk 0:02:44]}  Bg4 {[%clk 0:02:54]} 12. h3 {[%clk 0:02:43]}  Bh5 {[%clk 0:02:53]} 13. Re1 {[%clk 0:02:40]}  Qd6 {[%clk 0:02:52]} 14. c4 {[%clk 0:02:27]}  d4 {[%clk 0:02:50]} 15. Qc2 {[%clk 0:02:26]}  Nb4 {[%clk 0:02:45]} 16. Qb1 {[%clk 0:02:25]}  Rxe1+ {[%clk 0:02:42]} 17. Nxe1 {[%clk 0:02:24]}  Re8 {[%clk 0:02:37]} 18. Ndf3 {[%clk 0:02:10]}  Nxd3 {[%clk 0:02:33]} 19. Qxd3 {[%clk 0:02:08]}  Bg6 {[%clk 0:02:32]} 20. Qd1 {[%clk 0:02:04]}  d3 {[%clk 0:02:32]} 21. Qd2 {[%clk 0:01:48]}  Ne4 {[%clk 0:02:26]} 22. Qxd3 {[%clk 0:01:22]}  Bxf2+ {[%clk 0:02:25]} 23. Kf1 {[%clk 0:01:20]}  Ng3+ {[%clk 0:02:25]} 24. Kxf2 {[%clk 0:01:19]}  Bxd3 {[%clk 0:02:25]} 25. Nxd3 {[%clk 0:01:17]}  Re2+ {[%clk 0:02:22]} 0-1


[Site "https://www.chess.com"]

[Event "Titled Tuesday Blitz May 23 Early 2023"]
[White "Sanudula, K M Dahamdi"]
[Black "Srdanovic, Jovana"]
[WhiteFideId "9932470"]
[BlackFideId "954810"]
[WhiteElo "1556"]
[BlackElo "2169"]
[Result "0-1"]
[Round "10"]
[TimeControl "180+2"]
[Date "2023.05.23"]
[WhiteClock "0:00:25"]
[BlackClock "0:01:06"]

1. d4 {[%clk 0:02:58]}  d5 {[%clk 0:02:59]} 2. e3 {[%clk 0:02:58]}  c5 {[%clk 0:02:56]} 3. c3 {[%clk 0:02:57]}  cxd4 {[%clk 0:02:56]} 4. exd4 {[%clk 0:02:57]}  Nc6 {[%clk 0:02:57]} 5. f4 {[%clk 0:02:57]}  Nf6 {[%clk 0:02:57]} 6. Nf3 {[%clk 0:02:57]}  Ne4 {[%clk 0:02:56]} 7. Bd3 {[%clk 0:02:57]}  Bg4 {[%clk 0:02:53]} 8. Qe2 {[%clk 0:02:54]}  f5 {[%clk 0:02:35]} 9. h3 {[%clk 0:02:53]}  Bxf3 {[%clk 0:02:35]} 10. Qxf3 {[%clk 0:02:52]}  e6 {[%clk 0:02:35]} 11. O-O {[%clk 0:02:51]}  Bd6 {[%clk 0:02:33]} 12. Nd2 {[%clk 0:02:49]}  O-O {[%clk 0:02:33]} 13. Qe2 {[%clk 0:02:45]}  Qf6 {[%clk 0:02:26]} 14. Qe1 {[%clk 0:02:38]}  Rae8 {[%clk 0:02:24]} 15. Nf3 {[%clk 0:02:38]}  h6 {[%clk 0:02:21]} 16. Ne5 {[%clk 0:02:38]}  Bxe5 {[%clk 0:02:18]} 17. fxe5 {[%clk 0:02:38]}  Qe7 {[%clk 0:02:18]} 18. Bxe4 {[%clk 0:02:36]}  fxe4 {[%clk 0:02:17]} 19. Be3 {[%clk 0:02:31]}  Na5 {[%clk 0:02:17]} 20. b3 {[%clk 0:02:28]}  Nc6 {[%clk 0:02:16]} 21. Qg3 {[%clk 0:02:26]}  Rxf1+ {[%clk 0:02:12]} 22. Rxf1 {[%clk 0:02:26]}  Rf8 {[%clk 0:02:13]} 23. Bxh6 {[%clk 0:02:20]}  Rxf1+ {[%clk 0:02:05]} 24. Kxf1 {[%clk 0:02:21]}  b5 {[%clk 0:02:05]} 25. Bg5 {[%clk 0:02:11]}  Qf7+ {[%clk 0:02:05]} 26. Kg1 {[%clk 0:02:11]}  b4 {[%clk 0:02:05]} 27. Be3 {[%clk 0:02:10]}  bxc3 {[%clk 0:02:04]} 28. Qe1 {[%clk 0:02:10]}  c2 {[%clk 0:01:55]} 29. Qd2 {[%clk 0:02:04]}  Qe7 {[%clk 0:01:40]} 30. Qxc2 {[%clk 0:02:02]}  Nb4 {[%clk 0:01:41]} 31. Qc8+ {[%clk 0:01:45]}  Kh7 {[%clk 0:01:40]} 32. a3 {[%clk 0:01:43]}  Nd3 {[%clk 0:01:38]} 33. a4 {[%clk 0:01:34]}  Qb4 {[%clk 0:01:29]} 34. Kh2 {[%clk 0:01:10]}  Qe1 {[%clk 0:01:20]} 35. Bg5 {[%clk 0:01:01]}  Qf2 {[%clk 0:01:08]} 36. Qxe6 {[%clk 0:00:57]}  Ne1 {[%clk 0:01:06]} 37. Qg4 {[%clk 0:00:28]}  Nf3+ {[%clk 0:01:05]} 38. Qxf3 {[%clk 0:00:25]}  exf3 {[%clk 0:01:06]} 0-1


[Site "https://www.chess.com"]

[Event "Titled Tuesday Blitz May 23 Early 2023"]
[White "Nugumanov, Bakhtiyar"]
[Black "Zaitsev, Alexander"]
[WhiteFideId "13701797"]
[BlackFideId "4164490"]
[WhiteElo "2209"]
[BlackElo "2373"]
[Result "1/2-1/2"]
[Round "10"]
[TimeControl "180+2"]
[Date "2023.05.23"]
[WhiteClock "0:00:08"]
[BlackClock "0:00:07"]

1. Nf3 {[%clk 0:03:00]}  c5 {[%clk 0:02:59]} 2. c4 {[%clk 0:03:01]}  Nc6 {[%clk 0:02:58]} 3. Nc3 {[%clk 0:03:01]}  g6 {[%clk 0:02:58]} 4. e3 {[%clk 0:03:01]}  Nf6 {[%clk 0:02:53]} 5. d4 {[%clk 0:03:00]}  cxd4 {[%clk 0:02:53]} 6. exd4 {[%clk 0:03:01]}  d5 {[%clk 0:02:53]} 7. cxd5 {[%clk 0:03:01]}  Nxd5 {[%clk 0:02:52]} 8. Qb3 {[%clk 0:03:02]}  Nxc3 {[%clk 0:02:43]} 9. Bc4 {[%clk 0:03:01]}  e6 {[%clk 0:02:42]} 10. bxc3 {[%clk 0:02:59]}  Bg7 {[%clk 0:02:41]} 11. Ba3 {[%clk 0:02:46]}  Bf8 {[%clk 0:02:40]} 12. Bb2 {[%clk 0:02:33]}  Na5 {[%clk 0:02:26]} 13. Bb5+ {[%clk 0:02:29]}  Bd7 {[%clk 0:02:26]} 14. Qa4 {[%clk 0:02:22]}  Nc6 {[%clk 0:02:13]} 15. d5 {[%clk 0:02:05]}  exd5 {[%clk 0:02:09]} 16. c4 {[%clk 0:02:00]}  d4 {[%clk 0:01:44]} 17. Nxd4 {[%clk 0:01:40]}  Bb4+ {[%clk 0:01:15]} 18. Kf1 {[%clk 0:01:38]}  O-O {[%clk 0:01:13]} 19. Bxc6 {[%clk 0:01:27]}  bxc6 {[%clk 0:00:55]} 20. Qxb4 {[%clk 0:01:27]}  Rb8 {[%clk 0:00:44]} 21. Qc3 {[%clk 0:01:27]}  Qb6 {[%clk 0:00:41]} 22. Nb3 {[%clk 0:01:27]}  f6 {[%clk 0:00:41]} 23. Qd4 {[%clk 0:01:22]}  Qc7 {[%clk 0:00:34]} 24. Qh4 {[%clk 0:01:14]}  Qd6 {[%clk 0:00:29]} 25. Qd4 {[%clk 0:01:01]}  Qc7 {[%clk 0:00:27]} 26. h4 {[%clk 0:00:55]}  Bf5 {[%clk 0:00:27]} 27. Qe3 {[%clk 0:00:30]}  Rbd8 {[%clk 0:00:26]} 28. Re1 {[%clk 0:00:18]}  Bd3+ {[%clk 0:00:22]} 29. Kg1 {[%clk 0:00:18]}  Bxc4 {[%clk 0:00:23]} 30. Qc3 {[%clk 0:00:16]}  Bd5 {[%clk 0:00:21]} 31. h5 {[%clk 0:00:16]}  g5 {[%clk 0:00:21]} 32. Qg3 {[%clk 0:00:14]}  Qb6 {[%clk 0:00:19]} 33. Bd4 {[%clk 0:00:14]}  Qb5 {[%clk 0:00:19]} 34. Bxf6 {[%clk 0:00:13]}  Rxf6 {[%clk 0:00:16]} 35. Qxg5+ {[%clk 0:00:14]}  Kf7 {[%clk 0:00:17]} 36. h6 {[%clk 0:00:09]}  Rg8 {[%clk 0:00:16]} 37. Qh5+ {[%clk 0:00:09]}  Rfg6 {[%clk 0:00:14]} 38. Qf5+ {[%clk 0:00:09]}  Rf6 {[%clk 0:00:11]} 39. Qd7+ {[%clk 0:00:07]}  Kg6 {[%clk 0:00:09]} 40. Qg4+ {[%clk 0:00:08]}  Kf7 {[%clk 0:00:08]} 41. Qd7+ {[%clk 0:00:07]}  Kg6 {[%clk 0:00:08]} 42. Qg4+ {[%clk 0:00:07]}  Kf7 {[%clk 0:00:07]} 43. Qd7+ {[%clk 0:00:08]} 1/2-1/2


[Site "https://www.chess.com"]

[Event "Titled Tuesday Blitz May 23 Early 2023"]
[White "Gurevich, Dmitry"]
[Black "ChesscularGodofchess"]
[WhiteFideId "2000407"]
[WhiteElo "2506"]
[BlackElo "2193"]
[Result "1-0"]
[Round "10"]
[TimeControl "180+2"]
[Date "2023.05.23"]
[WhiteClock "0:02:27"]
[BlackClock "0:01:45"]

1. d4 {[%clk 0:02:59]}  d5 {[%clk 0:02:56]} 2. c4 {[%clk 0:02:59]}  c6 {[%clk 0:02:56]} 3. cxd5 {[%clk 0:02:58]}  cxd5 {[%clk 0:02:57]} 4. Bg5 {[%clk 0:02:58]}  h6 {[%clk 0:02:57]} 5. Bh4 {[%clk 0:02:56]}  Nc6 {[%clk 0:02:57]} 6. Qd2 {[%clk 0:02:53]}  Bf5 {[%clk 0:02:53]} 7. Nc3 {[%clk 0:02:51]}  Qa5 {[%clk 0:02:43]} 8. e3 {[%clk 0:02:45]}  a6 {[%clk 0:02:35]} 9. Nf3 {[%clk 0:02:34]}  Nb4 {[%clk 0:02:20]} 10. Rc1 {[%clk 0:02:33]}  Nxa2 {[%clk 0:01:59]} 11. Ra1 {[%clk 0:02:31]}  e6 {[%clk 0:01:45]} 12. Rxa2 {[%clk 0:02:27]} 1-0


[Site "https://www.chess.com"]

[Event "Titled Tuesday Blitz May 23 Early 2023"]
[White "Kovalevsky, Stanislav"]
[Black "Torres Dominguez, David"]
[WhiteFideId "13508598"]
[BlackFideId "2220857"]
[WhiteElo "2174"]
[BlackElo "1999"]
[Result "1-0"]
[Round "10"]
[TimeControl "180+2"]
[Date "2023.05.23"]
[WhiteClock "0:01:09"]
[BlackClock "0:00:00"]

1. c4 {[%clk 0:02:48]}  e5 {[%clk 0:02:15]} 2. Nc3 {[%clk 0:02:48]}  Nc6 {[%clk 0:02:15]} 3. g3 {[%clk 0:02:48]}  f5 {[%clk 0:02:16]} 4. Bg2 {[%clk 0:02:49]}  Nf6 {[%clk 0:02:16]} 5. Rb1 {[%clk 0:02:46]}  a5 {[%clk 0:02:14]} 6. a3 {[%clk 0:02:45]}  Bc5 {[%clk 0:02:07]} 7. Nd5 {[%clk 0:02:43]}  d6 {[%clk 0:01:50]} 8. b4 {[%clk 0:02:43]}  axb4 {[%clk 0:01:46]} 9. axb4 {[%clk 0:02:44]}  Ba7 {[%clk 0:01:42]} 10. e3 {[%clk 0:02:41]}  Nxd5 {[%clk 0:01:42]} 11. Bxd5 {[%clk 0:02:40]}  Ne7 {[%clk 0:01:41]} 12. Bg2 {[%clk 0:02:35]}  O-O {[%clk 0:01:41]} 13. Ne2 {[%clk 0:02:35]}  Qe8 {[%clk 0:01:41]} 14. O-O {[%clk 0:02:34]}  Bd7 {[%clk 0:01:33]} 15. Bxb7 {[%clk 0:02:31]}  Rb8 {[%clk 0:01:33]} 16. Bg2 {[%clk 0:02:28]}  Bc6 {[%clk 0:01:29]} 17. d4 {[%clk 0:02:27]}  Bxg2 {[%clk 0:01:29]} 18. Kxg2 {[%clk 0:02:27]}  f4 {[%clk 0:01:28]} 19. exf4 {[%clk 0:02:26]}  Ng6 {[%clk 0:01:20]} 20. dxe5 {[%clk 0:02:24]}  dxe5 {[%clk 0:01:21]} 21. Qd5+ {[%clk 0:02:14]}  Kh8 {[%clk 0:01:19]} 22. fxe5 {[%clk 0:02:14]}  Nxe5 {[%clk 0:01:08]} 23. Nf4 {[%clk 0:02:12]}  Ng6 {[%clk 0:00:48]} 24. c5 {[%clk 0:02:04]}  c6 {[%clk 0:00:41]} 25. Qa2 {[%clk 0:01:27]}  Ne5 {[%clk 0:00:18]} 26. Qxa7 {[%clk 0:01:18]}  Ra8 {[%clk 0:00:16]} 27. Qc7 {[%clk 0:01:14]}  Rc8 {[%clk 0:00:11]} 28. Qd6 {[%clk 0:01:13]}  Nc4 {[%clk 0:00:11]} 29. Qe6 {[%clk 0:01:11]}  Qd8 {[%clk 0:00:00]} 30. Qxc4 {[%clk 0:01:09]} 1-0


[Site "https://www.chess.com"]